[Event "2nd Turkish League 2017"]
[Site "Konya"]
[Date "2017.07.18"]
[Round "3"]
[White "Uyanik, Ulas"]
[Black "Koc, Dogan Mehmet"]
[Result "1-0"]
[ECO "A12"]
[WhiteElo "1861"]
[BlackElo "1712"]
[Annotator "NA"]
[PlyCount "61"]
[EventType "team-tourn"]
[EventCountry "TUR"]
[SourceTitle "playchess.com"]
[Source "ChessBase"]
[SourceQuality "1"]
[TimeControl "5400+30"]

1. c4 {[%emt 0:00:30]} c6 {[%emt 0:01:00]} 2. Nf3 {[%emt 0:01:30]} d5 {[%emt 0:00:30]} 3. b3 {[%emt 0:06:30]} Nf6 {[%emt 0:02:30]} 4. Bb2 {[%emt 0:00:30]} Bf5 {[%emt 0:00:30]} 5. d3 {[%emt 0:05:30]} e6 {[%emt 0:02:30]} 6. Nbd2 {[%emt 0:00:30]} Bd6 {[%emt 0:01:30]} 7. Qc2 {[%emt 0:03:30]} Nbd7 {[%emt 0:04:30]} 8. cxd5 {[%emt 0:03:30]} exd5 {[%emt 0:03:30]} 9. g3 {[%emt 0:12:30]} O-O {[%emt 0:00:30]} 10. Bg2 {[%emt 0:00:00]} Re8 {[%emt 0:00:30]} 11. Nd4 {[%emt 0:03:00]} Bg6 {[%emt 0:01:30]} 12. O-O {[%emt 0:04:30]} Bc5 {[%emt 0:03:30]} 13. N2f3 {[%emt 0:01:30]} Qb6 {[%emt 0:01:30]} 14. a3 {[%emt 0:01:30]} a5 {[%emt 0:05:30]} 15. Bc3 {[%emt 0:00:30]} Bxd4 {[%emt 0:05:30]} 16. Bxd4 {[%emt 0:00:30]} c5 {[%emt 0:00:30]} 17. Bxf6 {[%emt 0:00:30]} Nxf6 {[%emt 0:01:30]} 18. Nh4 {[%emt 0:03:30]} Qd6 {[%emt 0:08:30]} 19. Nxg6 {[%emt 0:00:30]} hxg6 {[%emt 0:00:30]} 20. e4 {[%emt 0:04:30]} a4 {[%emt 0:04:30]} 21. bxa4 {[%emt 0:03:30]} g5 {[%emt 0:05:30]} 22. exd5 {[%emt 0:06:30]} Ra5 {[%emt 0:03:30]} 23. Rab1 {[%emt 0:00:30]} b6 {[%emt 0:00:30]} 24. Qb3 {[%emt 0:04:30]} Nd7 {[%emt 0:00:30]} 25. Rfe1 {[%emt 0:02:30]} Rea8 {[%emt 0:01:30]} 26. Bh3 {[%emt 0:03:30]} Rxa4 {[%emt 0:02:30]} 27. Bxd7 {[%emt 0:03:30]} Qxd7 {[%emt 0:00:30]} 28. Qxb6 {[%emt 0:00:30]} Qxd5 {[%emt 0:00:30]} 29. Rbc1 {[%emt 0:04:43]} Rxa3 {[%emt 0:06:30]} 30. Rxc5 {[%emt 0:03:18]} Qd4 {[%emt 0:02:30]} 31. Rc8+ {[%emt 0:01:13]} 1-0

[Event "2nd Turkish League 2017"]
[Site "Konya"]
[Date "2017.07.18"]
[Round "3"]
[White "Altunbay, Onder"]
[Black "Batmaz, Onur Utku"]
[Result "1/2-1/2"]
[ECO "B38"]
[WhiteElo "1830"]
[BlackElo "1562"]
[Annotator "NA"]
[PlyCount "81"]
[EventType "team-tourn"]
[EventCountry "TUR"]
[SourceTitle "playchess.com"]
[Source "ChessBase"]
[SourceQuality "1"]
[TimeControl "5400+30"]

1. e4 {[%emt 0:00:30]} c5 {[%emt 0:01:00]} 2. Nf3 {[%emt 0:00:30]} g6 {[%emt 0:00:30]} 3. d4 {[%emt 0:00:00]} cxd4 {[%emt 0:00:30]} 4. Nxd4 {[%emt 0:00:00]} Bg7 {[%emt 0:00:00]} 5. c4 {[%emt 0:00:30]} Nc6 {[%emt 0:00:00]} 6. Be3 {[%emt 0:01:30]} Nf6 {[%emt 0:00:30]} 7. Nc3 {[%emt 0:00:30]} O-O {[%emt 0:00:00]} 8. Be2 {[%emt 0:01:30]} d6 {[%emt 0:00:00]} 9. O-O {[%emt 0:01:30]} Bd7 {[%emt 0:02:30]} 10. Rc1 {[%emt 0:11:30]} Nxd4 {[%emt 0:05:30]} 11. Bxd4 {[%emt 0:00:30]} Bc6 {[%emt 0:02:30]} 12. f3 {[%emt 0:00:30]} Nd7 {[%emt 0:01:30]} 13. Bxg7 {[%emt 0:01:30]} Kxg7 {[%emt 0:00:30]} 14. Qd2 {[%emt 0:01:30]} Rc8 {[%emt 0:13:30]} 15. Kh1 {[%emt 0:01:30]} a6 {[%emt 0:00:30]} 16. Qd4+ {[%emt 0:06:30]} Kg8 {[%emt 0:00:30]} 17. Rfd1 {[%emt 0:01:30]} Qb6 {[%emt 0:06:30]} 18. Qd2 {[%emt 0:00:30]} Nc5 {[%emt 0:08:30]} 19. b3 {[%emt 0:03:30]} Rfe8 {[%emt 0:05:30]} 20. Nd5 {[%emt 0:04:30]} Bxd5 {[%emt 0:00:00]} 21. exd5 {[%emt 0:01:30]} a5 {[%emt 0:01:00]} 22. Re1 {[%emt 0:05:30]} Qb4 {[%emt 0:07:30]} 23. Rc2 {[%emt 0:09:30]} Qxd2 {[%emt 0:03:30]} 24. Rxd2 {[%emt 0:00:30]} Kf8 {[%emt 0:00:30]} 25. Kg1 {[%emt 0:00:30]} Rc7 {[%emt 0:01:30]} 26. Bf1 {[%emt 0:02:30]} Ra8 {[%emt 0:06:30]} 27. Kf2 {[%emt 0:01:30]} Kg7 {[%emt 0:03:30]} 28. Ke3 {[%emt 0:04:30]} h6 {[%emt 0:03:30]} 29. Kd4 {[%emt 0:00:30]} Kf6 {[%emt 0:01:30]} 30. Re3 {[%emt 0:03:30]} Rac8 {[%emt 0:02:30]} 31. g3 {[%emt 0:11:30]} Ra8 {[%emt 0:02:30]} 32. Be2 {[%emt 0:04:30]} Rac8 {[%emt 0:01:30]} 33. Bf1 {[%emt 0:02:00]} Ra8 {[%emt 0:00:00]} 34. f4 {[%emt 0:01:20]} h5 {[%emt 0:02:00]} 35. Be2 {[%emt 0:02:23]} Rh8 {[%emt 0:00:30]} 36. h3 {[%emt 0:03:06]} b6 {[%emt 0:00:49]} 37. Bd1 {[%emt 0:01:31]} Rhc8 {[%emt 0:04:31]} 38. Be2 {[%emt 0:00:39]} Rh8 {[%emt 0:00:30]} 39. Bd1 {[%emt 0:00:10]} Rhc8 {[%emt 0:01:26]} 40. Be2 {[%emt 0:00:08]} Rh8 {[%emt 0:06:57]} 41. Bd1 {[%emt 0:00:19]} 1/2-1/2

[Event "2nd Turkish League 2017"]
[Site "Konya"]
[Date "2017.07.18"]
[Round "3"]
[White "Suzan, Ufuk"]
[Black "Duman, Aydin"]
[Result "0-1"]
[ECO "B35"]
[WhiteElo "1813"]
[BlackElo "2056"]
[Annotator "NA"]
[PlyCount "112"]
[EventType "team-tourn"]
[EventCountry "TUR"]
[SourceTitle "playchess.com"]
[Source "ChessBase"]
[SourceQuality "1"]
[TimeControl "5400+30"]

1. e4 {[%emt 0:00:30]} c5 {[%emt 0:01:00]} 2. Nf3 {[%emt 0:00:30]} g6 {[%emt 0:00:30]} 3. d4 {[%emt 0:00:30]} cxd4 {[%emt 0:00:00]} 4. Nxd4 {[%emt 0:00:00]} Bg7 {[%emt 0:00:00]} 5. Nc3 {[%emt 0:00:00]} Nc6 {[%emt 0:00:30]} 6. Be3 {[%emt 0:00:00]} Nf6 {[%emt 0:00:00]} 7. Bc4 {[%emt 0:00:00]} Qa5 {[%emt 0:00:00]} 8. O-O {[%emt 0:00:00]} d6 {[%emt 0:00:00]} 9. h3 {[%emt 0:01:00]} O-O {[%emt 0:00:00]} 10. a3 {[%emt 0:02:30]} Bd7 {[%emt 0:00:00]} 11. f4 {[%emt 0:00:00]} Nxd4 {[%emt 0:12:00]} 12. Bxd4 {[%emt 0:00:00]} Bc6 {[%emt 0:00:30]} 13. Qd3 {[%emt 0:00:30]} Nd7 {[%emt 0:00:00]} 14. Bxg7 {[%emt 0:00:30]} Kxg7 {[%emt 0:00:00]} 15. Kh1 {[%emt 0:00:30]} Nf6 {[%emt 0:03:30]} 16. Rae1 {[%emt 0:03:30]} e6 {[%emt 0:08:30]} 17. Qxd6 {[%emt 0:03:30]} Rfd8 {[%emt 0:06:30]} 18. Qb4 {[%emt 0:00:30]} Qxb4 {[%emt 0:00:30]} 19. axb4 {[%emt 0:00:00]} Rd4 {[%emt 0:00:30]} 20. Bd3 {[%emt 0:07:00]} Rxb4 {[%emt 0:00:30]} 21. b3 {[%emt 0:00:30]} Rd8 {[%emt 0:01:30]} 22. Kh2 {[%emt 0:03:30]} Nd7 {[%emt 0:07:30]} 23. Bc4 {[%emt 0:03:30]} Nc5 {[%emt 0:10:30]} 24. Rf2 {[%emt 0:05:30]} a5 {[%emt 0:05:30]} 25. f5 {[%emt 0:03:30]} b5 {[%emt 0:04:30]} 26. Bf1 {[%emt 0:01:30]} a4 {[%emt 0:04:30]} 27. fxe6 {[%emt 0:05:30]} fxe6 {[%emt 0:00:30]} 28. bxa4 {[%emt 0:00:30]} bxa4 {[%emt 0:00:30]} 29. e5 {[%emt 0:01:30]} Rdd4 {[%emt 0:06:30]} 30. Rf6 {[%emt 0:06:30]} Rd2 {[%emt 0:04:30]} 31. Nb1 {[%emt 0:07:30]} Rxc2 {[%emt 0:01:30]} 32. Na3 {[%emt 0:01:30]} Ra2 {[%emt 0:00:30]} 33. Rc1 {[%emt 0:00:30]} Nd3 {[%emt 0:09:25]} 34. Rxc6 {[%emt 0:03:30]} Nxe5 {[%emt 0:00:17]} 35. Rcxe6 {[%emt 0:01:30]} Rxa3 {[%emt 0:00:10]} 36. Rf2 {[%emt 0:00:30]} Re3 {[%emt 0:01:15]} 37. Re7+ {[%emt 0:02:30]} Kh6 {[%emt 0:00:06]} 38. Ra7 {[%emt 0:00:30]} a3 {[%emt 0:00:09]} 39. Re2 {[%emt 0:12:30]} Rbb3 {[%emt 0:04:46]} 40. Rc2 {[%emt 0:01:30]} Rec3 {[%emt 0:02:20]} 41. Rxc3 {[%emt 0:09:01]} Rxc3 {[%emt 0:00:01]} 42. Kg1 {[%emt 0:01:07]} Nc6 {[%emt 0:00:46]} 43. Ra4 {[%emt 0:00:09]} Kg5 {[%emt 0:01:15]} 44. Bc4 {[%emt 0:02:51]} Ne5 {[%emt 0:01:01]} 45. Bg8 {[%emt 0:00:17]} h5 {[%emt 0:00:00]} 46. Kf1 {[%emt 0:00:37]} Nd3 {[%emt 0:01:09]} 47. Kg1 {[%emt 0:03:28]} h4 {[%emt 0:02:02]} 48. Rg4+ {[%emt 0:00:02]} Kh5 {[%emt 0:00:13]} 49. Kf1 {[%emt 0:02:10]} g5 {[%emt 0:00:30]} 50. Bf7+ {[%emt 0:00:22]} Kh6 {[%emt 0:00:06]} 51. Ra4 {[%emt 0:02:27]} Nf4 {[%emt 0:00:16]} 52. Ra6+ {[%emt 0:01:41]} Kg7 {[%emt 0:00:08]} 53. Ra7 {[%emt 0:00:00]} Kf6 {[%emt 0:00:36]} 54. Be8 {[%emt 0:00:22]} Rc1+ {[%emt 0:00:12]} 55. Kf2 {[%emt 0:00:30]} Rc2+ {[%emt 0:00:00]} 56. Kf1 {[%emt 0:00:20]} a2 {[%emt 0:00:13]} 0-1

[Event "2nd Turkish League 2017"]
[Site "Konya"]
[Date "2017.07.19"]
[Round "3"]
[White "Guney, Gamze Nur"]
[Black "Simsek, Meltem"]
[Result "1/2-1/2"]
[ECO "A25"]
[WhiteElo "1776"]
[BlackElo "1752"]
[Annotator "NA"]
[PlyCount "62"]
[EventType "team-tourn"]
[EventCountry "TUR"]
[SourceTitle "playchess.com"]
[Source "ChessBase"]
[SourceQuality "1"]
[TimeControl "5400+30"]

1. c4 {[%emt 0:00:30]} e5 {[%emt 0:01:00]} 2. Nc3 {[%emt 0:00:30]} Nc6 {[%emt 0:00:00]} 3. g3 {[%emt 0:00:00]} Bc5 {[%emt 0:00:00]} 4. Bg2 {[%emt 0:01:00]} d6 {[%emt 0:00:30]} 5. e3 {[%emt 0:00:00]} Nge7 {[%emt 0:05:30]} 6. Nge2 {[%emt 0:00:00]} O-O {[%emt 0:00:30]} 7. O-O {[%emt 0:00:30]} a6 {[%emt 0:07:30]} 8. Kh1 {[%emt 0:04:30]} f5 {[%emt 0:11:30]} 9. f4 {[%emt 0:04:30]} Ba7 {[%emt 0:18:30]} 10. a3 {[%emt 0:03:30]} Be6 {[%emt 0:02:30]} 11. Nd5 {[%emt 0:07:30]} Rb8 {[%emt 0:17:30]} 12. d3 {[%emt 0:07:30]} b5 {[%emt 0:01:30]} 13. b3 {[%emt 0:03:30]} Bf7 {[%emt 0:04:30]} 14. Qe1 {[%emt 0:18:30]} Nxd5 {[%emt 0:01:30]} 15. cxd5 {[%emt 0:00:30]} Ne7 {[%emt 0:00:00]} 16. e4 {[%emt 0:04:30]} fxe4 {[%emt 0:02:00]} 17. dxe4 {[%emt 0:01:30]} Bh5 {[%emt 0:00:30]} 18. Ra2 {[%emt 0:07:30]} Qd7 {[%emt 0:02:30]} 19. Ng1 {[%emt 0:06:30]} Rbe8 {[%emt 0:05:03]} 20. Nh3 {[%emt 0:06:30]} Bg4 {[%emt 0:01:14]} 21. f5 {[%emt 0:01:30]} c6 {[%emt 0:01:06]} 22. dxc6 {[%emt 0:03:17]} Nxc6 {[%emt 0:00:12]} 23. Nf2 {[%emt 0:01:16]} Bh5 {[%emt 0:00:27]} 24. Be3 {[%emt 0:03:08]} Nd4 {[%emt 0:00:54]} 25. b4 {[%emt 0:06:47]} Bf7 {[%emt 0:01:32]} 26. Rb2 {[%emt 0:00:16]} Bc4 {[%emt 0:00:44]} 27. Rg1 {[%emt 0:00:56]} d5 {[%emt 0:02:16]} 28. g4 {[%emt 0:01:14]} dxe4 {[%emt 0:05:05]} 29. Nxe4 {[%emt 0:00:48]} Bd5 {[%emt 0:00:24]} 30. Rd2 {[%emt 0:01:00]} Qb7 {[%emt 0:01:20]} 31. Bf2 {[%emt 0:01:40]} Rd8 {[%emt 0:02:00]} 1/2-1/2

[Event "2nd Turkish League 2017"]
[Site "Konya"]
[Date "2017.07.18"]
[Round "3"]
[White "Ozdemir, Ali"]
[Black "Sahinoglu, Hakan"]
[Result "1/2-1/2"]
[ECO "B33"]
[WhiteElo "1762"]
[BlackElo "1835"]
[Annotator "NA"]
[PlyCount "85"]
[EventType "team-tourn"]
[EventCountry "TUR"]
[SourceTitle "playchess.com"]
[Source "ChessBase"]
[SourceQuality "1"]
[TimeControl "5400+30"]

1. e4 {[%emt 0:00:30]} c5 {[%emt 0:01:00]} 2. Nf3 {[%emt 0:00:30]} Nc6 {[%emt 0:00:30]} 3. d4 {[%emt 0:00:30]} cxd4 {[%emt 0:00:00]} 4. Nxd4 {[%emt 0:00:30]} Nf6 {[%emt 0:00:00]} 5. Nc3 {[%emt 0:00:30]} e5 {[%emt 0:00:00]} 6. Ndb5 {[%emt 0:00:00]} d6 {[%emt 0:00:00]} 7. Bg5 {[%emt 0:00:00]} a6 {[%emt 0:00:00]} 8. Na3 {[%emt 0:00:30]} b5 {[%emt 0:00:00]} 9. Nd5 {[%emt 0:00:30]} Be7 {[%emt 0:00:30]} 10. Bxf6 {[%emt 0:00:00]} Bxf6 {[%emt 0:00:00]} 11. c3 {[%emt 0:00:00]} O-O {[%emt 0:00:00]} 12. Nc2 {[%emt 0:00:30]} Bg5 {[%emt 0:00:30]} 13. a4 {[%emt 0:01:30]} Rb8 {[%emt 0:00:30]} 14. axb5 {[%emt 0:01:30]} axb5 {[%emt 0:00:30]} 15. Ncb4 {[%emt 0:20:30]} Nxb4 {[%emt 0:03:30]} 16. Nxb4 {[%emt 0:00:30]} Qb6 {[%emt 0:03:30]} 17. Qh5 {[%emt 0:09:30]} Bd8 {[%emt 0:02:30]} 18. Bd3 {[%emt 0:02:30]} g6 {[%emt 0:00:30]} 19. Qe2 {[%emt 0:20:30]} f5 {[%emt 0:02:30]} 20. f3 {[%emt 0:04:30]} Bg5 {[%emt 0:11:30]} 21. Qf2 {[%emt 0:03:30]} Be3 {[%emt 0:04:30]} 22. Qe2 {[%emt 0:00:00]} Bb7 {[%emt 0:07:30]} 23. exf5 {[%emt 0:21:05]} gxf5 {[%emt 0:08:30]} 24. Nc2 {[%emt 0:01:16]} Bf4 {[%emt 0:03:30]} 25. Qf2 {[%emt 0:01:10]} Qc7 {[%emt 0:06:30]} 26. O-O {[%emt 0:01:38]} Bd5 {[%emt 0:08:30]} 27. Nb4 {[%emt 0:02:30]} Be6 {[%emt 0:02:30]} 28. Na6 {[%emt 0:03:04]} Qb6 {[%emt 0:00:30]} 29. Qxb6 {[%emt 0:00:03]} Rxb6 {[%emt 0:00:30]} 30. Nb4 {[%emt 0:00:50]} Be3+ {[%emt 0:07:30]} 31. Kh1 {[%emt 0:00:10]} Rbb8 {[%emt 0:00:00]} 32. Rfe1 {[%emt 0:02:10]} Bf2 {[%emt 0:06:00]} 33. Rf1 {[%emt 0:00:41]} Bc5 {[%emt 0:04:57]} 34. Na6 {[%emt 0:02:07]} Rb7 {[%emt 0:01:54]} 35. Nxc5 {[%emt 0:00:58]} dxc5 {[%emt 0:00:08]} 36. Ra5 {[%emt 0:00:47]} c4 {[%emt 0:01:47]} 37. Bc2 {[%emt 0:00:53]} Rd8 {[%emt 0:03:54]} 38. Raa1 {[%emt 0:00:23]} Rd2 {[%emt 0:00:00]} 39. Rfc1 {[%emt 0:00:41]} Rbd7 {[%emt 0:00:55]} 40. Bd1 {[%emt 0:00:32]} Rxb2 {[%emt 0:00:26]} 41. Rab1 {[%emt 0:00:22]} Rdd2 {[%emt 0:00:03]} 42. Rxb2 {[%emt 0:00:34]} Rxb2 {[%emt 0:00:30]} 43. Kg1 {[%emt 0:00:00]} 1/2-1/2

[Event "2nd Turkish League 2017"]
[Site "Konya"]
[Date "2017.07.18"]
[Round "3"]
[White "Yakar, Ozan Tuna"]
[Black "Ibik, Halit Yavuz"]
[Result "1/2-1/2"]
[ECO "D52"]
[WhiteElo "1718"]
[BlackElo "2004"]
[Annotator "NA"]
[PlyCount "60"]
[EventType "team-tourn"]
[EventCountry "TUR"]
[SourceTitle "playchess.com"]
[Source "ChessBase"]
[SourceQuality "1"]
[TimeControl "5400+30"]

1. d4 {[%emt 0:00:30]} d5 {[%emt 0:01:00]} 2. Nf3 {[%emt 0:00:30]} Nf6 {[%emt 0:00:30]} 3. c4 {[%emt 0:00:30]} c6 {[%emt 0:00:30]} 4. Nc3 {[%emt 0:00:00]} e6 {[%emt 0:00:00]} 5. Bg5 {[%emt 0:01:00]} Nbd7 {[%emt 0:00:00]} 6. cxd5 {[%emt 0:00:30]} exd5 {[%emt 0:00:00]} 7. e3 {[%emt 0:01:30]} Qa5 {[%emt 0:05:00]} 8. Nd2 {[%emt 0:03:30]} Ne4 {[%emt 0:09:30]} 9. Ncxe4 {[%emt 0:00:00]} dxe4 {[%emt 0:00:30]} 10. Bh4 {[%emt 0:11:00]} Nb6 {[%emt 0:04:30]} 11. Be2 {[%emt 0:03:30]} f5 {[%emt 0:16:30]} 12. O-O {[%emt 0:03:30]} Be6 {[%emt 0:01:30]} 13. Qc2 {[%emt 0:14:30]} Bd6 {[%emt 0:05:30]} 14. Nc4 {[%emt 0:01:30]} Nxc4 {[%emt 0:00:30]} 15. Bxc4 {[%emt 0:00:30]} Bxc4 {[%emt 0:00:30]} 16. Qxc4 {[%emt 0:00:30]} Qd5 {[%emt 0:00:00]} 17. Qxd5 {[%emt 0:05:30]} cxd5 {[%emt 0:00:00]} 18. Bg3 {[%emt 0:00:00]} Kd7 {[%emt 0:05:30]} 19. Bxd6 {[%emt 0:05:00]} Kxd6 {[%emt 0:00:00]} 20. Rfc1 {[%emt 0:00:30]} g5 {[%emt 0:04:00]} 21. Rc5 {[%emt 0:06:30]} Rac8 {[%emt 0:04:30]} 22. Rac1 {[%emt 0:00:30]} Rxc5 {[%emt 0:00:30]} 23. Rxc5 {[%emt 0:00:30]} Rf8 {[%emt 0:03:30]} 24. Kf1 {[%emt 0:05:30]} f4 {[%emt 0:18:30]} 25. Ke2 {[%emt 0:10:30]} f3+ {[%emt 0:10:05]} 26. Kf1 {[%emt 0:09:01]} fxg2+ {[%emt 0:01:20]} 27. Kxg2 {[%emt 0:00:07]} h5 {[%emt 0:00:26]} 28. Rc1 {[%emt 0:02:10]} g4 {[%emt 0:02:29]} 29. Rc2 {[%emt 0:01:55]} Kd7 {[%emt 0:03:15]} 30. Rc5 {[%emt 0:05:19]} Kd6 {[%emt 0:00:43]} 1/2-1/2

[Event "2nd Turkish League 2017"]
[Site "Konya"]
[Date "2017.07.18"]
[Round "3"]
[White "Aslan, Huseyin"]
[Black "Turkmen, Huseyin Nafizhan"]
[Result "0-1"]
[ECO "B09"]
[WhiteElo "1654"]
[BlackElo "1817"]
[Annotator "NA"]
[PlyCount "82"]
[EventType "team-tourn"]
[EventCountry "TUR"]
[SourceTitle "playchess.com"]
[Source "ChessBase"]
[SourceQuality "1"]
[TimeControl "5400+30"]

1. e4 {[%emt 0:00:30]} d6 {[%emt 0:01:00]} 2. d4 {[%emt 0:00:00]} Nf6 {[%emt 0:00:30]} 3. Nc3 {[%emt 0:00:00]} g6 {[%emt 0:00:30]} 4. f4 {[%emt 0:00:00]} Bg7 {[%emt 0:00:00]} 5. Nf3 {[%emt 0:00:00]} c6 {[%emt 0:01:00]} 6. Bd3 {[%emt 0:01:30]} O-O {[%emt 0:03:30]} 7. O-O {[%emt 0:01:30]} b5 {[%emt 0:05:30]} 8. a3 {[%emt 0:00:30]} e6 {[%emt 0:04:30]} 9. Kh1 {[%emt 0:02:30]} Nbd7 {[%emt 0:03:30]} 10. e5 {[%emt 0:06:30]} Ne8 {[%emt 0:06:30]} 11. Qe1 {[%emt 0:02:30]} Bb7 {[%emt 0:08:30]} 12. f5 {[%emt 0:10:30]} exf5 {[%emt 0:11:30]} 13. Bg5 {[%emt 0:02:30]} Qc7 {[%emt 0:01:30]} 14. Be7 {[%emt 0:03:30]} Nxe5 {[%emt 0:11:30]} 15. Bxf8 {[%emt 0:01:30]} Nxf3 {[%emt 0:03:30]} 16. Rxf3 {[%emt 0:00:30]} Kxf8 {[%emt 0:00:30]} 17. Qh4 {[%emt 0:04:30]} Nf6 {[%emt 0:02:30]} 18. Bxf5 {[%emt 0:18:30]} c5 {[%emt 0:08:30]} 19. d5 {[%emt 0:03:30]} gxf5 {[%emt 0:07:47]} 20. Rxf5 {[%emt 0:01:30]} b4 {[%emt 0:01:27]} 21. Rxf6 {[%emt 0:08:30]} bxc3 {[%emt 0:03:04]} 22. bxc3 {[%emt 0:00:30]} Bxf6 {[%emt 0:05:21]} 23. Qxf6 {[%emt 0:00:30]} Qd8 {[%emt 0:00:47]} 24. Qf5 {[%emt 0:03:30]} Kg7 {[%emt 0:04:40]} 25. Rf1 {[%emt 0:05:30]} Qe7 {[%emt 0:00:43]} 26. h3 {[%emt 0:00:30]} Rf8 {[%emt 0:01:30]} 27. c4 {[%emt 0:11:27]} Bc8 {[%emt 0:01:17]} 28. Qh5 {[%emt 0:02:32]} Qe5 {[%emt 0:01:32]} 29. Qh4 {[%emt 0:00:10]} Bf5 {[%emt 0:00:53]} 30. Re1 {[%emt 0:00:54]} Qf6 {[%emt 0:00:17]} 31. Qg3+ {[%emt 0:00:23]} Qg6 {[%emt 0:00:30]} 32. Qc3+ {[%emt 0:00:30]} Qf6 {[%emt 0:00:30]} 33. Qg3+ {[%emt 0:00:07]} Bg6 {[%emt 0:01:14]} 34. h4 {[%emt 0:00:02]} h5 {[%emt 0:00:02]} 35. Kg1 {[%emt 0:01:14]} Rb8 {[%emt 0:00:41]} 36. Kh2 {[%emt 0:03:50]} Rb2 {[%emt 0:00:54]} 37. Re2 {[%emt 0:00:30]} Kh7 {[%emt 0:00:00]} 38. Rf2 {[%emt 0:03:39]} Qd4 {[%emt 0:01:12]} 39. Rf4 {[%emt 0:01:16]} Qe5 {[%emt 0:00:15]} 40. Qf3 {[%emt 0:02:14]} Rxc2 {[%emt 0:00:13]} 41. Kh3 {[%emt 0:00:26]} Rc3 {[%emt 0:00:08]} 0-1

[Event "2nd Turkish League 2017"]
[Site "Konya"]
[Date "2017.07.18"]
[Round "3"]
[White "Turkkan, Ece"]
[Black "Kahya, Gizem"]
[Result "0-1"]
[ECO "A80"]
[WhiteElo "1532"]
[BlackElo "1634"]
[Annotator "NA"]
[PlyCount "52"]
[EventType "team-tourn"]
[EventCountry "TUR"]
[SourceTitle "playchess.com"]
[Source "ChessBase"]
[SourceQuality "1"]
[TimeControl "5400+30"]

1. d4 {[%emt 0:00:30]} f5 {[%emt 0:01:00]} 2. Bg5 {[%emt 0:00:00]} Nf6 {[%emt 0:04:30]} 3. Nc3 {[%emt 0:07:00]} e6 {[%emt 0:05:30]} 4. e3 {[%emt 0:01:30]} Be7 {[%emt 0:00:00]} 5. Bd3 {[%emt 0:01:30]} O-O {[%emt 0:00:00]} 6. Qf3 {[%emt 0:14:30]} d5 {[%emt 0:06:30]} 7. Nge2 {[%emt 0:13:30]} Ne4 {[%emt 0:05:30]} 8. Bxe7 {[%emt 0:00:30]} Qxe7 {[%emt 0:00:30]} 9. h4 {[%emt 0:04:30]} c6 {[%emt 0:06:30]} 10. O-O-O {[%emt 0:04:30]} Nd7 {[%emt 0:03:30]} 11. Bxe4 {[%emt 0:02:30]} fxe4 {[%emt 0:02:30]} 12. Qg3 {[%emt 0:01:30]} e5 {[%emt 0:01:30]} 13. Rdf1 {[%emt 0:06:30]} b5 {[%emt 0:05:30]} 14. f4 {[%emt 0:10:30]} exf3 {[%emt 0:01:30]} 15. Rxf3 {[%emt 0:00:30]} Rxf3 {[%emt 0:01:30]} 16. Qxf3 {[%emt 0:00:00]} Bb7 {[%emt 0:03:30]} 17. g4 {[%emt 0:10:24]} Rf8 {[%emt 0:00:30]} 18. Qg2 {[%emt 0:00:44]} exd4 {[%emt 0:00:30]} 19. exd4 {[%emt 0:01:25]} Qe3+ {[%emt 0:13:30]} 20. Kb1 {[%emt 0:04:10]} b4 {[%emt 0:01:30]} 21. Nd1 {[%emt 0:00:30]} Qd2 {[%emt 0:01:30]} 22. Qg3 {[%emt 0:11:06]} Qxe2 {[%emt 0:00:30]} 23. Qc7 {[%emt 0:00:13]} Bc8 {[%emt 0:01:30]} 24. Qxc6 {[%emt 0:00:48]} Nb6 {[%emt 0:01:30]} 25. Qd6 {[%emt 0:02:59]} Bxg4 {[%emt 0:02:30]} 26. Qxb4 {[%emt 0:00:38]} Rf1 {[%emt 0:00:30]} 0-1

[Event "2nd Turkish League 2017"]
[Site "Konya"]
[Date "2017.07.18"]
[Round "3"]
[White "Ozsoy, Damla"]
[Black "Hafizoglu, Bengi"]
[Result "1/2-1/2"]
[ECO "B34"]
[WhiteElo "1490"]
[BlackElo "1415"]
[Annotator "NA"]
[PlyCount "60"]
[EventType "team-tourn"]
[EventCountry "TUR"]
[SourceTitle "playchess.com"]
[Source "ChessBase"]
[SourceQuality "1"]
[TimeControl "5400+30"]

1. e4 {[%emt 0:00:30]} c5 {[%emt 0:01:00]} 2. Nf3 {[%emt 0:00:30]} Nc6 {[%emt 0:00:30]} 3. d4 {[%emt 0:00:30]} cxd4 {[%emt 0:00:00]} 4. Nxd4 {[%emt 0:00:00]} g6 {[%emt 0:00:00]} 5. Nc3 {[%emt 0:00:00]} Bg7 {[%emt 0:00:00]} 6. Be3 {[%emt 0:00:30]} Nf6 {[%emt 0:01:00]} 7. Be2 {[%emt 0:00:30]} O-O {[%emt 0:00:30]} 8. O-O {[%emt 0:00:30]} d5 {[%emt 0:07:30]} 9. exd5 {[%emt 0:05:30]} Nxd5 {[%emt 0:00:30]} 10. Nxd5 {[%emt 0:03:30]} Qxd5 {[%emt 0:00:30]} 11. Bf3 {[%emt 0:00:30]} Qc4 {[%emt 0:07:30]} 12. Nxc6 {[%emt 0:04:30]} bxc6 {[%emt 0:00:30]} 13. c3 {[%emt 0:04:30]} Bf5 {[%emt 0:05:30]} 14. Qb3 {[%emt 0:09:30]} Qa6 {[%emt 0:05:30]} 15. Bc5 {[%emt 0:02:30]} Rfe8 {[%emt 0:05:30]} 16. Qa3 {[%emt 0:09:30]} Qxa3 {[%emt 0:14:30]} 17. Bxa3 {[%emt 0:00:30]} Rac8 {[%emt 0:00:30]} 18. Rfe1 {[%emt 0:01:30]} e5 {[%emt 0:01:30]} 19. Bc5 {[%emt 0:03:30]} e4 {[%emt 0:05:30]} 20. Bd1 {[%emt 0:01:30]} Rb8 {[%emt 0:01:30]} 21. Bb3 {[%emt 0:06:30]} Rb7 {[%emt 0:03:30]} 22. Rad1 {[%emt 0:02:30]} Bf8 {[%emt 0:01:30]} 23. Bxf8 {[%emt 0:06:30]} Kxf8 {[%emt 0:01:30]} 24. Rd6 {[%emt 0:00:30]} Rc8 {[%emt 0:02:30]} 25. Re2 {[%emt 0:03:30]} Ke7 {[%emt 0:01:30]} 26. Red2 {[%emt 0:01:30]} Rb6 {[%emt 0:13:32]} 27. h3 {[%emt 0:06:30]} h5 {[%emt 0:00:46]} 28. R6d4 {[%emt 0:03:30]} c5 {[%emt 0:05:09]} 29. Ra4 {[%emt 0:00:30]} Rc7 {[%emt 0:00:34]} 30. Kf1 {[%emt 0:04:37]} Rbc6 {[%emt 0:03:11]} 1/2-1/2

[Event "2nd Turkish League 2017"]
[Site "Konya"]
[Date "2017.07.18"]
[Round "3"]
[White "Ozefe, Begum"]
[Black "Ilkbahar, Nimet Seray"]
[Result "1-0"]
[ECO "D45"]
[WhiteElo "1403"]
[BlackElo "1618"]
[Annotator "NA"]
[PlyCount "41"]
[EventType "team-tourn"]
[EventCountry "TUR"]
[SourceTitle "playchess.com"]
[Source "ChessBase"]
[SourceQuality "1"]
[TimeControl "5400+30"]

1. d4 {[%emt 0:00:30]} d5 {[%emt 0:01:00]} 2. Nf3 {[%emt 0:00:30]} Nf6 {[%emt 0:00:00]} 3. c4 {[%emt 0:00:00]} e6 {[%emt 0:00:00]} 4. Nc3 {[%emt 0:00:00]} c6 {[%emt 0:00:30]} 5. e3 {[%emt 0:00:00]} Bd6 {[%emt 0:01:30]} 6. Bd3 {[%emt 0:00:00]} O-O {[%emt 0:00:30]} 7. O-O {[%emt 0:00:30]} b6 {[%emt 0:00:30]} 8. cxd5 {[%emt 0:00:30]} Nxd5 {[%emt 0:03:30]} 9. a3 {[%emt 0:03:30]} Nxc3 {[%emt 0:01:30]} 10. bxc3 {[%emt 0:00:30]} Nd7 {[%emt 0:01:30]} 11. Qc2 {[%emt 0:00:30]} Nf6 {[%emt 0:00:30]} 12. e4 {[%emt 0:15:30]} Bb8 {[%emt 0:16:30]} 13. e5 {[%emt 0:00:30]} Nd7 {[%emt 0:01:30]} 14. Bxh7+ {[%emt 0:00:30]} Kh8 {[%emt 0:00:00]} 15. Ng5 {[%emt 0:23:30]} g6 {[%emt 0:05:00]} 16. h4 {[%emt 0:00:30]} Kg7 {[%emt 0:00:30]} 17. h5 {[%emt 0:00:30]} gxh5 {[%emt 0:05:30]} 18. Bg8 {[%emt 0:05:30]} Nxe5 {[%emt 0:05:30]} 19. dxe5 {[%emt 0:01:30]} Bxe5 {[%emt 0:00:30]} 20. Qh7+ {[%emt 0:00:30]} Kf6 {[%emt 0:00:30]} 21. Ne4+ {[%emt 0:00:00]} 1-0